bitfinex/quotes_SOLUSD_20251202
["timestamp","ask_amount","ask_price","bid_price","bid_amount"]
[1764638068908,12.33591892,127.74,127.73,0.1]
[1764638069616,8.8,127.74,127.73,0.77]
[1764638069800,12.33591892,127.74,127.73,0.77]
[1764638070424,2.26333129,127.74,127.73,0.77]
[1764638070724,8.8,127.76,127.73,0.77]
[1764638070910,2.26333129,127.75,127.73,8.59901432]
[1764638071324,8.8,127.76,127.74,0.72]
[1764638071629,2.26333129,127.75,127.74,0.72]
[1764638072226,2.26333129,127.75,127.73,0.1]
[1764638072397,11.06333129,127.74,127.73,0.1]
[1764638074329,46.77603451,127.74,127.73,0.1]
[1764638077414,42.24937193,127.74,127.73,0.1]
[1764638077603,41.88937193,127.74,127.73,0.1]
[1764638077809,35.20059673,127.74,127.73,0.82]
[1764638078032,35.20059673,127.74,127.73,0.1]
[1764638079217,11.06333129,127.74,127.73,0.82]
[1764638079614,8.8,127.74,127.73,0.82]
[1764638080132,11.06333129,127.76,127.73,0.82]
[1764638080545,2.26333129,127.75,127.73,0.82]
[1764638081114,2.26333129,127.75,127.73,8.64873517]
[1764638081612,2.26333129,127.75,127.74,0.66]
[1764638084136,2.26333129,127.75,127.73,0.76]
[1764638084342,2.26333129,127.74,127.73,0.76]
[1764638087425,16.308864,127.79,127.73,0.76]
[1764638087748,2.26333129,127.77,127.73,11.48854631]
[1764638088126,8.78,127.78,127.74,0.66]
[1764638088342,2.26333129,127.77,127.74,0.66]
[1764638088829,2.26333129,127.77,127.74,8.48795952]
[1764638089340,2.26333129,127.77,127.75,0.66]
[1764638090044,2.26333129,127.76,127.75,0.66]
[1764638090559,2.26333129,127.76,127.74,2.9]
[1764638090870,16.60604597,127.78,127.74,3.56]
[1764638090871,2.26333129,127.75,127.74,3.56]
[1764638093352,2.26333129,127.76,127.74,3.56]
[1764638093556,2.26333129,127.75,127.74,3.56]
[1764638093937,2.26333129,127.75,127.74,0.66]
[1764638094333,11.04333129,127.75,127.73,3.0]
[1764638094557,2.26333129,127.74,127.73,3.66]
[1764638094852,2.26333129,127.74,127.73,3.0]
[1764638095155,11.04333129,127.75,127.73,3.0]
[1764638095350,11.04333129,127.75,127.73,10.82895501]
[1764638095536,11.04333129,127.75,127.74,0.66]
[1764638096856,11.04333129,127.75,127.74,8.48840144]
[1764638097046,8.78,127.75,127.74,8.48840144]
[1764638097350,2.26333129,127.76,127.74,8.48840144]
[1764638097551,2.26333129,127.75,127.73,3.0]
[1764638097742,16.96659633,127.77,127.73,3.66]
[1764638097953,2.26333129,127.74,127.73,3.66]
[1764638099856,2.26333129,127.75,127.73,0.76]
[1764638100059,2.26333129,127.75,127.73,8.588901]
[1764638100645,2.26333129,127.74,127.73,7.928901]
[1764638101246,2.26333129,127.74,127.73,8.588901]
[1764638101450,7.82636458,127.78,127.73,8.588901]
[1764638101662,2.26333129,127.81,127.74,11.70333129]
[1764638101957,2.26333129,127.8,127.74,9.44]
[1764638102166,2.26333129,127.79,127.75,0.66]
[1764638102335,0.36,127.81,127.75,0.66]
[1764638102533,2.26333129,127.79,127.75,0.66]
[1764638102758,2.26333129,127.8,127.76,7.82717595]
[1764638102956,8.80994492,127.83,127.76,7.82717595]
[1764638102957,11.04333129,127.79,127.76,7.82717595]
[1764638103163,11.04333129,127.79,127.76,8.48717595]
[1764638103466,11.04333129,127.79,127.77,0.66]
[1764638103762,8.78,127.79,127.77,2.92333129]
[1764638103966,8.78,127.79,127.76,28.05511583]
[1764638104268,2.26333129,127.77,127.74,8.48840144]
[1764638104561,2.26333129,127.77,127.75,0.66]
[1764638104859,2.26333129,127.77,127.74,8.48840144]
[1764638105058,2.26333129,127.76,127.74,7.82840144]
[1764638105256,2.26333129,127.76,127.75,0.66]
[1764638105658,2.26333129,127.77,127.75,0.66]
[1764638107239,43.83695146,127.81,127.75,8.48728521]
[1764638107550,2.26333129,127.79,127.75,8.48728521]
[1764638107758,2.26333129,127.79,127.76,0.66]
[1764638108053,2.26333129,127.78,127.76,8.48667356]
[1764638108249,2.26333129,127.78,127.74,19.5698363]
[1764638108250,2.26333129,127.77,127.74,8.48801236]
[1764638108564,2.26333129,127.75,127.74,8.48801236]
[1764638109057,16.60648336,127.78,127.74,8.48801236]
[1764638109242,2.26333129,127.75,127.74,7.82801236]
[1764638109442,2.26333129,127.75,127.74,8.48801236]
[1764638109633,2.26333129,127.75,127.73,0.76]
[1764638109847,2.26333129,127.74,127.73,0.76]
[1764638110366,2.26333129,127.77,127.73,8.58860838]
[1764638110561,2.26333129,127.77,127.74,0.66]
[1764638110949,8.78,127.78,127.74,0.66]
[1764638111147,2.26333129,127.76,127.74,0.66]
[1764638111562,2.26333129,127.77,127.74,0.66]
[1764638111966,2.26333129,127.77,127.74,8.48799451]
[1764638112157,2.26333129,127.77,127.75,0.69]
[1764638113470,2.26333129,127.76,127.73,0.79]
[1764638113767,2.26333129,127.74,127.73,0.1]
[1764638115966,28.45716438,127.74,127.73,0.1]
[1764638117775,16.45102557,127.72,127.71,4.61160591]
[1764638117955,27.49435686,127.72,127.71,4.61160591]
[1764638118158,35.68398416,127.72,127.71,4.61160591]
[1764638119278,8.95210649,127.71,127.69,0.1]
[1764638119481,11.45881802,127.7,127.69,0.1]
[1764638119681,8.80994492,127.69,127.68,0.1]
[1764638119983,45.57546537,127.69,127.68,0.1]
[1764638120153,45.57546537,127.69,127.65,0.2]
[1764638120154,25.26097049,127.66,127.65,0.2]
[1764638120355,25.11880892,127.63,127.62,0.2]
[1764638120551,36.30430178,127.63,127.62,0.2]
[1764638120753,45.71762694,127.63,127.62,0.2]
[1764638120976,36.66430178,127.63,127.62,0.2]
[1764638121183,36.30430178,127.63,127.62,0.2]
[1764638121382,44.13945025,127.63,127.62,0.2]
[1764638122471,53.55277541,127.63,127.62,0.2]
[1764638124590,44.49945025,127.63,127.62,0.2]
[1764638124787,42.23611896,127.63,127.62,0.2]
[1764638124967,44.49945025,127.63,127.62,0.2]
[1764638126664,35.71945025,127.63,127.62,0.2]
[1764638126865,44.49945025,127.63,127.62,0.2]
[1764638127384,35.35945025,127.63,127.62,0.2]
[1764638127578,44.13945025,127.63,127.62,0.2]
[1764638127798,44.49945025,127.63,127.62,0.2]
[1764638128468,44.13945025,127.63,127.62,0.2]
[1764638128870,44.49945025,127.63,127.62,0.2]
[1764638129071,53.55277541,127.63,127.62,0.2]
[1764638129265,8.95210649,127.62,127.61,0.1]
[1764638129482,27.83120019,127.62,127.61,0.1]
[1764638130092,7.83504969,127.64,127.61,0.79]
[1764638130290,11.07327621,127.65,127.61,3.05333129]
[1764638130591,11.04333129,127.64,127.61,0.79]
[1764638130894,2.26333129,127.63,127.62,0.69]
[1764638131072,11.04333129,127.64,127.62,0.69]
[1764638131674,2.26333129,127.63,127.62,0.69]
[1764638131987,18.87800685,127.64,127.62,0.69]
[1764638132376,20.15676941,127.64,127.62,0.69]
[1764638132582,3.54209385,127.63,127.62,0.69]
[1764638133083,8.78,127.64,127.62,0.69]
[1764638133287,20.15680536,127.64,127.62,0.69]
[1764638133587,3.54209385,127.63,127.62,0.69]
[1764638134296,3.54209385,127.63,127.61,0.1]
[1764638134297,11.37724232,127.63,127.61,0.1]
[1764638134599,12.32209385,127.62,127.61,0.1]
[1764638134788,24.81629419,127.62,127.61,0.1]
[1764638135296,25.17629419,127.62,127.61,0.1]
[1764638135698,33.0120566,127.62,127.61,0.1]
[1764638135876,8.95210649,127.61,127.6,0.1]
[1764638136077,12.85420034,127.61,127.6,0.1]
[1764638137389,12.49420034,127.61,127.6,0.1]
[1764638137573,12.85420034,127.61,127.6,0.1]
[1764638137895,20.69057679,127.61,127.6,0.1]
[1764638142904,20.69057679,127.61,127.6,1e-08]
[1764638146579,16.308864,127.55,127.5,7.84293271]
[1764638146890,25.26097049,127.55,127.54,0.72]
[1764638147200,34.04097049,127.55,127.51,0.72]
[1764638147811,7.84067743,127.54,127.51,0.72]
[1764638148011,3.54209385,127.52,127.51,0.72]
[1764638148319,3.54209385,127.52,127.49,0.72]
[1764638148483,12.32209385,127.52,127.51,0.72]
[1764638149117,8.78,127.52,127.51,0.72]
[1764638149408,12.32209385,127.52,127.51,0.72]
[1764638150803,36.472865,127.52,127.51,0.72]
[1764638151105,36.472865,127.52,127.5,0.72]
[1764638151301,3.54209385,127.51,127.5,0.72]
[1764638152198,12.49420034,127.51,127.5,0.72]
[1764638152501,12.49420034,127.51,127.47,0.82]
[1764638152718,19.85095785,127.48,127.47,0.1]
[1764638152883,36.47532559,127.48,127.47,0.1]
[1764638153200,45.42743208,127.48,127.47,0.1]
[1764638155397,45.78743208,127.48,127.47,0.1]
[1764638155805,25.26097049,127.45,127.44,0.2]
[1764638156000,41.12515819,127.45,127.44,0.2]
[1764638157006,48.97137239,127.45,127.44,0.2]
[1764638157208,49.33137239,127.45,127.44,0.2]
[1764638157404,48.97137239,127.45,127.44,0.2]
[1764638157604,45.42927854,127.45,127.44,0.2]
[1764638157802,48.97137239,127.45,127.44,0.2]
[1764638157988,40.19137239,127.45,127.44,0.2]
[1764638158188,48.97137239,127.45,127.44,0.2]
[1764638158394,49.33137239,127.45,127.44,0.2]
[1764638158593,48.97137239,127.45,127.44,0.2]
[1764638159007,49.33137239,127.45,127.43,0.2]
[1764638159207,0.14216157,127.43,127.42,0.2]
[1764638159425,0.14216157,127.41,127.39,0.92]
[1764638159624,21.27420034,127.4,127.39,0.92]
[1764638159919,21.27420034,127.4,127.39,0.2]
[1764638161221,29.1234939,127.4,127.39,0.2]
[1764638162206,8.80994492,127.37,127.35,4.85697901]
[1764638162418,37.58306434,127.36,127.35,4.85697901]
[1764638162713,25.26097049,127.34,127.33,0.2]
[1764638162915,37.58306434,127.34,127.33,0.2]
[1764638163222,48.97815017,127.34,127.33,0.2]
[1764638163517,9.31210649,127.33,127.29,0.2]
[1764638163724,16.308864,127.3,127.29,0.2]
[1764638163894,16.308864,127.26,127.24,0.72]
[1764638164100,12.32209385,127.25,127.23,7.85970068]
[1764638164496,8.78,127.25,127.24,0.72]
[1764638164819,8.78,127.28,127.24,10.64755464]
[1764638165017,9.92755464,127.31,127.26,9.92755464]
[1764638165221,8.78,127.3,127.27,7.85731122]
[1764638165424,18.70755464,127.3,127.27,8.57731122]
[1764638165596,9.92755464,127.29,127.28,0.72]
[1764638165801,9.92755464,127.29,127.23,7.85978149]
[1764638166011,9.92755464,127.27,127.26,0.72]
[1764638166725,8.78,127.27,127.26,0.72]
[1764638166918,18.70755464,127.27,127.23,8.57978149]
[1764638167113,9.92755464,127.24,127.2,0.1]
[1764638167317,9.92755464,127.26,127.21,9.92755464]
[1764638167500,8.78,127.25,127.22,9.92755464]
[1764638167897,8.78,127.25,127.23,0.72]
[1764638168321,9.92755464,127.27,127.23,10.64755464]
[1764638168630,18.70755464,127.27,127.23,10.64755464]
[1764638168828,18.70755464,127.27,127.24,0.72]
[1764638169213,9.92755464,127.25,127.24,0.72]
[1764638169524,26.565,127.27,127.24,0.72]
[1764638169711,8.8,127.26,127.24,0.72]
[1764638170437,9.92755464,127.29,127.24,18.50666397]
[1764638170733,8.8,127.27,127.24,18.50666397]
[1764638170932,8.8,127.27,127.25,0.72]
[1764638171239,8.8,127.31,127.27,7.85731122]
[1764638171416,8.8,127.31,127.28,0.71]
[1764638171822,9.92755464,127.31,127.28,0.71]
[1764638172115,18.72755464,127.3,127.28,0.71]
[1764638172430,9.92755464,127.29,127.26,0.71]
[1764638172628,9.92755464,127.28,127.26,0.71]
[1764638172832,18.72755464,127.27,127.26,0.71]
[1764638173030,16.308864,127.27,127.23,0.71]
[1764638173233,8.8,127.26,127.24,0.71]
[1764638173729,8.8,127.26,127.24,8.56915765]
[1764638173929,8.8,127.26,127.25,0.71]
[1764638174133,0.69,127.3,127.25,0.71]
[1764638174353,9.92755464,127.32,127.26,16.308864]
[1764638174629,8.8,127.3,127.27,9.92755464]
[1764638174829,8.8,127.3,127.27,10.63755464]
[1764638175016,9.92755464,127.33,127.29,9.92755464]
[1764638175214,9.92755464,127.31,127.28,0.71]
[1764638175414,8.8,127.32,127.28,8.56660724]
[1764638175632,8.8,127.32,127.29,9.92755464]
[1764638175928,8.8,127.33,127.3,9.92755464]
[1764638176134,8.8,127.33,127.3,10.63755464]
[1764638176309,8.8,127.33,127.31,0.71]
[1764638176721,18.72755464,127.33,127.31,0.71]
[1764638177535,9.92755464,127.32,127.29,0.71]
[1764638177727,9.92755464,127.32,127.3,0.71]
[1764638178112,9.92755464,127.34,127.3,10.63755464]
[1764638178309,18.72755464,127.34,127.31,0.71]
[1764638178530,9.92755464,127.34,127.31,0.71]
[1764638178737,8.8,127.34,127.31,0.71]
[1764638179335,18.72755464,127.34,127.31,0.71]
[1764638179832,8.80994492,127.38,127.32,9.92755464]
[1764638180010,9.92755464,127.39,127.34,9.92755464]
[1764638180206,8.8,127.38,127.34,9.92755464]
[1764638180407,8.8,127.38,127.35,0.71]
[1764638180607,9.92755464,127.36,127.32,0.71]
[1764638180810,18.72755464,127.35,127.32,0.71]
[1764638181014,18.72755464,127.35,127.31,27.4918767]
[1764638181015,8.95210649,127.34,127.28,8.56630768]
[1764638181222,7.85360873,127.33,127.28,8.56630768]
[1764638181534,7.85360873,127.33,127.29,0.71]
[1764638181735,18.72755464,127.32,127.29,0.71]
[1764638181942,9.92755464,127.31,127.29,0.71]
[1764638182436,9.92755464,127.34,127.3,7.85545954]
[1764638182635,75.0,127.45,127.33,9.92755464]
[1764638182837,9.92755464,127.39,127.34,10.63755464]
[1764638183026,8.8,127.38,127.34,10.63755464]
[1764638183222,8.8,127.38,127.35,0.71]
[1764638183521,18.72755464,127.38,127.35,0.71]
[1764638183842,9.92755464,127.37,127.35,0.71]
[1764638184029,18.72755464,127.38,127.35,0.71]
[1764638184538,18.72755464,127.38,127.35,8.56223878]
[1764638184720,8.8,127.38,127.35,8.56223878]
[1764638184922,18.72755464,127.38,127.36,0.71]
[1764638185127,8.8,127.38,127.36,0.71]
[1764638185339,8.8,127.39,127.36,0.71]
[1764638185945,18.72755464,127.39,127.36,0.71]
[1764638186128,18.72755464,127.39,127.36,8.56154108]
[1764638186324,8.8,127.39,127.36,8.56154108]
[1764638186636,9.92755464,127.38,127.36,0.71]
[1764638186831,26.57752002,127.39,127.37,0.71]
[1764638187032,9.92755464,127.42,127.37,10.63755464]
[1764638187239,20.50845053,127.44,127.38,10.63755464]
[1764638187240,0.2,127.44,127.38,10.63755464]
[1764638187546,18.72755464,127.43,127.38,10.63755464]
[1764638187746,9.92755464,127.4,127.38,0.71]
[1764638188039,9.92755464,127.39,127.35,0.71]
[1764638188245,9.92755464,127.38,127.36,8.56175879]
[1764638188618,9.92755464,127.39,127.36,7.85175879]
[1764638188825,9.92755464,127.39,127.37,0.71]
[1764638189120,9.92755464,127.38,127.35,8.56237534]
[1764638189426,18.70755464,127.37,127.35,8.56237534]
[1764638189739,9.92755464,127.36,127.31,8.56484251]
[1764638189938,9.92755464,127.35,127.32,0.71]
[1764638190241,9.92755464,127.33,127.3,8.56527217]
[1764638190423,9.92755464,127.32,127.31,0.71]
[1764638190826,9.92755464,127.33,127.31,0.71]
[1764638191832,18.70755464,127.33,127.31,8.56482566]
[1764638192339,8.78,127.33,127.31,7.85482566]
[1764638192549,8.78,127.33,127.32,0.71]
[1764638192841,18.70755464,127.33,127.32,0.71]
[1764638193042,18.70755464,127.33,127.3,8.5653367]
[1764638193343,9.92755464,127.31,127.29,0.71]
[1764638193549,18.70755464,127.3,127.28,7.85630903]
[1764638193935,18.70755464,127.3,127.28,8.56630903]
[1764638194136,8.78,127.3,127.28,8.56630903]
[1764638194854,6.32972463,127.35,127.29,7.03972463]
[1764638195035,8.78,127.34,127.31,6.32972463]
[1764638195228,8.78,127.35,127.31,6.32972463]
[1764638195435,6.32972463,127.37,127.33,7.85360873]
[1764638195640,6.32972463,127.41,127.35,6.32972463]
[1764638195846,8.78,127.4,127.36,7.03972463]
[1764638196049,15.10972463,127.4,127.36,0.71]
[1764638196239,15.10972463,127.4,127.37,0.71]
[1764638196630,8.78,127.4,127.37,0.71]
[1764638196829,6.32972463,127.39,127.37,0.71]
[1764638197029,6.32972463,127.38,127.33,28.19763056]
[1764638197231,8.78,127.37,127.33,28.19763056]
[1764638197458,8.78,127.37,127.35,7.85237534]
[1764638197647,15.10972463,127.37,127.34,8.55296135]
[1764638198326,8.78,127.37,127.34,8.55296135]
[1764638198528,8.78,127.37,127.33,19.63402183]
[1764638198529,15.10972463,127.37,127.33,7.8533842]
[1764638198756,6.32972463,127.36,127.33,7.8533842]
[1764638199058,6.32972463,127.36,127.34,0.7]
[1764638199261,15.10972463,127.37,127.34,0.7]
[1764638199462,8.78,127.37,127.34,8.55261043]
[1764638199755,8.78,127.36,127.34,28.1850904]
[1764638199959,8.78,127.36,127.35,0.7]
[1764638201159,8.78,127.36,127.35,8.55237534]
[1764638201958,19.61896525,127.43,127.35,34.51303832]
[1764638202259,6.32972463,127.41,127.36,7.03972463]
[1764638202742,6.32972463,127.41,127.37,0.71]
[1764638203147,15.10972463,127.42,127.38,7.85052598]
[1764638203463,8.78,127.42,127.39,6.32972463]
[1764638203642,8.78,127.42,127.39,0.71]
[1764638203956,15.10972463,127.42,127.39,0.71]
[1764638204143,8.78,127.42,127.39,0.71]
[1764638204551,15.10972463,127.43,127.39,0.71]
[1764638205262,15.10972463,127.43,127.4,7.84929356]
[1764638206165,15.10972463,127.43,127.4,8.55929356]
[1764638207062,8.78,127.43,127.41,0.71]
[1764638208577,6.32972463,127.42,127.39,28.18468403]
[1764638208740,6.32972463,127.4,127.39,7.84990972]
[1764638208945,8.78,127.4,127.38,7.85052598]
[1764638209267,15.10972463,127.4,127.38,7.85052598]
[1764638209662,25.46097049,127.44,127.39,0.71]
[1764638209847,6.32972463,127.43,127.39,0.71]
[1764638210169,6.32972463,127.41,127.39,0.71]
[1764638211559,15.10972463,127.42,127.4,7.84929356]
[1764638212162,6.32972463,127.41,127.4,7.84929356]
[1764638212367,8.78,127.42,127.4,8.55929356]
[1764638212669,0.2,127.44,127.41,0.71]
[1764638213578,0.2,127.44,127.42,7.84806152]
[1764638213873,0.2,127.44,127.41,8.55842854]
[1764638214345,0.2,127.44,127.42,0.71]
[1764638215248,0.2,127.44,127.42,7.03972463]
[1764638215669,0.2,127.44,127.42,7.84745449]
[1764638215848,0.2,127.44,127.42,8.55745449]
[1764638216175,0.2,127.44,127.43,0.71]
[1764638216873,0.2,127.44,127.42,7.84745449]
[1764638217071,0.2,127.44,127.43,0.71]
[1764638217755,0.2,127.44,127.43,8.55744565]
[1764638218279,0.2,127.44,127.43,14.88717028]
[1764638218474,0.2,127.44,127.43,8.55744565]
[1764638219356,0.2,127.44,127.43,14.88717028]
[1764638220651,0.2,127.44,127.43,8.55744565]
[1764638220860,0.2,127.44,127.43,14.88717028]
[1764638221371,7.84129224,127.53,127.46,16.308864]
[1764638221668,8.78,127.53,127.5,7.84313725]
[1764638221859,15.10972463,127.53,127.5,7.84313725]
[1764638222060,15.78972463,127.53,127.5,7.84313725]
[1764638222478,8.78,127.53,127.5,8.55313725]
[1764638222775,8.78,127.53,127.51,0.71]
[1764638223485,8.78,127.53,127.5,34.49070501]
[1764638223657,8.78,127.53,127.51,0.71]
[1764638223979,8.78,127.53,127.51,8.55206513]
[1764638224387,0.2,127.56,127.52,0.71]
[1764638224755,9.68994492,127.56,127.51,27.44837051]
[1764638224978,6.32972463,127.54,127.51,27.44837051]
[1764638225482,0.68,127.54,127.51,27.44837051]
[1764638225649,6.32972463,127.54,127.51,27.44837051]
[1764638225854,0.2,127.56,127.52,0.71]
[1764638226061,0.2,127.56,127.53,7.84129224]
[1764638226262,6.52972463,127.56,127.53,7.84129224]
[1764638226660,0.2,127.56,127.54,0.71]
[1764638226978,0.2,127.56,127.55,22.63858863]
[1764638227191,0.2,127.56,127.55,23.34858863]
[1764638227483,8.78,127.62,127.55,23.34858863]
[1764638227773,8.78,127.62,127.59,6.32972463]
[1764638227978,0.68,127.69,127.6,7.83699059]
[1764638228192,14.16057819,127.7,127.64,16.308864]
[1764638228401,15.98972463,127.71,127.65,6.32972463]
[1764638228883,6.32972463,127.7,127.65,7.03972463]
[1764638229186,6.32972463,127.67,127.63,0.71]
[1764638229486,6.32972463,127.68,127.63,17.018864]
[1764638229982,7.00972463,127.68,127.65,7.83392087]
[1764638230182,7.00972463,127.68,127.64,8.54444089]
[1764638230562,7.00972463,127.68,127.64,8.54443652]
[1764638230779,6.32972463,127.65,127.61,0.71]
[1764638230975,6.32972463,127.65,127.62,7.83576241]
[1764638231479,0.68,127.67,127.62,7.83576241]
[1764638231688,6.32972463,127.67,127.63,0.67]
[1764638231899,6.32972463,127.66,127.63,0.67]
[1764638232104,6.32972463,127.64,127.61,7.83618547]
[1764638232279,9.47,127.66,127.61,8.50618547]
[1764638232280,6.32972463,127.65,127.61,8.50618547]
[1764638232477,7.01972463,127.65,127.61,8.50618547]
[1764638232801,8.78,127.66,127.62,0.67]
[1764638232998,15.79972463,127.66,127.61,28.09712661]
[1764638233367,9.47,127.66,127.61,28.09712661]
[1764638233599,15.79972463,127.66,127.61,28.09712661]
[1764638233897,15.79972463,127.66,127.61,27.42712661]
[1764638234075,6.32972463,127.67,127.63,7.83514847]
[1764638234277,8.76,127.66,127.63,7.83514847]
[1764638234792,15.77972463,127.66,127.63,7.83514847]
[1764638234995,8.76,127.66,127.63,8.50514847]
[1764638235809,8.76,127.66,127.64,0.67]
[1764638236402,8.76,127.66,127.64,8.50453205]
[1764638237306,7.01972463,127.65,127.62,7.83530235]
[1764638237594,15.08972463,127.66,127.62,7.83530235]
[1764638237796,8.76,127.66,127.63,0.67]
[1764638237983,0.2,127.69,127.65,6.32972463]
[1764638238178,0.2,127.69,127.66,6.32972463]
[1764638238378,0.2,127.69,127.67,7.83269366]
[1764638238585,0.2,127.69,127.67,8.50269366]
[1764638238886,0.2,127.69,127.67,7.83269366]
[1764638239901,0.2,127.69,127.66,7.83308386]
[1764638240205,0.2,127.69,127.66,8.50308386]
[1764638240401,0.2,127.69,127.68,7.8320802]
[1764638240902,0.2,127.69,127.68,8.5020802]
[1764638241077,0.2,127.69,127.68,14.83180483]
[1764638241277,0.2,127.69,127.68,17.2620802]
[1764638241691,0.2,127.69,127.68,7.8320802]
[1764638242487,0.2,127.69,127.67,7.83269366]
[1764638242688,0.2,127.69,127.67,8.50269366]
[1764638243209,0.2,127.69,127.68,0.67]
[1764638243406,0.2,127.69,127.67,7.83269366]
[1764638243707,0.2,127.69,127.67,8.50269366]
[1764638245307,0.2,127.69,127.67,7.83269366]
[1764638245603,0.2,127.69,127.67,8.50269366]
[1764638246410,0.2,127.69,127.67,7.83269366]
[1764638246587,0.2,127.69,127.67,8.50269366]
[1764638246913,0.2,127.69,127.67,7.83269366]
[1764638247585,0.2,127.69,127.68,0.67]
[1764638248591,0.2,127.69,127.68,8.5020802]
[1764638248792,0.2,127.69,127.68,7.8320802]
[1764638249387,0.2,127.69,127.68,8.5020802]
[1764638250015,0.2,127.69,127.67,7.83269366]
[1764638250192,0.2,127.69,127.67,8.50269366]
[1764638250518,7.21972463,127.69,127.66,7.83313444]
[1764638250806,0.2,127.69,127.66,7.83313444]
[1764638250998,0.2,127.69,127.67,0.67]
[1764638251402,0.2,127.69,127.66,33.74612712]
[1764638251602,0.2,127.69,127.66,34.41612712]
[1764638251912,0.2,127.69,127.66,14.83285907]
[1764638252108,7.21972463,127.69,127.66,7.83313444]
[1764638252314,6.32972463,127.68,127.65,7.83371328]
[1764638252807,6.32972463,127.68,127.64,8.50431064]
[1764638253009,7.01972463,127.68,127.64,8.50431064]
[1764638253227,6.32972463,127.66,127.62,9.43]
[1764638253395,8.72157333,127.69,127.63,28.09301966]
[1764638253597,6.32972463,127.68,127.63,34.42274429]
[1764638254015,6.32972463,127.68,127.64,0.67]
[1764638254233,7.21972463,127.69,127.65,7.83392087]
[1764638254513,0.2,127.69,127.66,6.32972463]
[1764638254706,0.2,127.69,127.66,0.67]
[1764638254912,0.2,127.69,127.67,6.99972463]
[1764638255295,0.2,127.69,127.68,0.67]
[1764638256303,0.2,127.69,127.68,8.5020802]
[1764638256618,0.2,127.69,127.68,18.35604519]
[1764638256815,0.2,127.69,127.68,8.5020802]
[1764638257199,0.2,127.69,127.68,18.35604519]
[1764638259126,0.2,127.69,127.68,8.5020802]
[1764638260004,0.2,127.69,127.68,34.66490919]
[1764638261525,0.2,127.69,127.68,24.8109442]
[1764638261823,0.2,127.69,127.68,34.66490919]
[1764638264324,0.2,127.74,127.73,18.38297931]
[1764638264727,0.2,127.74,127.73,7.82901432]
[1764638264728,0.86,127.74,127.73,7.82901432]
[1764638265027,10.71396499,127.74,127.71,27.40381517]
[1764638265200,10.05396499,127.74,127.71,27.40381517]
[1764638265405,0.66,127.73,127.71,27.40381517]
[1764638265632,9.85396499,127.72,127.71,7.8297194]
[1764638265840,10.51396499,127.73,127.71,7.8297194]
[1764638266738,10.51396499,127.73,127.69,27.41013391]
[1764638266916,0.66,127.73,127.69,28.11013391]
[1764638267230,10.05396499,127.74,127.7,10.55396499]
[1764638267231,0.2,127.74,127.7,10.55396499]
[1764638267432,0.2,127.74,127.72,9.85396499]
[1764638267813,0.2,127.74,127.72,10.55396499]
[1764638268026,0.2,127.74,127.73,0.7]
[1764638268432,0.2,127.74,127.72,9.85396499]
[1764638268619,0.2,127.74,127.72,10.55396499]
[1764638268926,0.2,127.74,127.73,7.82901432]
[1764638269130,0.2,127.74,127.73,18.38297931]
[1764638270333,0.2,127.74,127.73,27.14297931]
[1764638272633,0.2,127.74,127.73,7.82901432]
[1764638272835,0.2,127.74,127.71,45.73691269]
[1764638272836,0.86,127.74,127.72,7.82951889]
[1764638273040,10.71396499,127.74,127.72,7.82951889]
[1764638273216,0.66,127.73,127.71,7.82998041]
[1764638273931,10.51396499,127.73,127.71,7.82998041]
[1764638274238,0.66,127.73,127.71,7.82998041]
[1764638275018,10.51396499,127.73,127.69,24.140176]
[1764638275217,0.66,127.73,127.69,24.840176]
[1764638275431,0.66,127.73,127.69,44.41884308]
[1764638276336,0.66,127.73,127.69,54.27280807]